bitfinex-derivatives/quotes_ETHF0:USTF0_20250828
["timestamp","ask_amount","ask_price","bid_price","bid_amount"]
[1756347060990,1.6521,4522.8,4522.7,0.9468]
[1756347061191,22.1961,4522.8,4522.7,0.9468]
[1756347061695,22.1961,4522.8,4522.5,3.2078]
[1756347061901,1.6459,4522.6,4522.5,3.2078]
[1756347065004,1.6459,4522.6,4522.5,4.8393]
[1756347065498,1.6459,4522.6,4522.0,0.2808]
[1756347065804,0.6764,4522.6,4521.9,3.4958]
[1756347066100,1.6459,4522.0,4521.9,3.4958]
[1756347066298,22.1739,4522.0,4521.9,3.4958]
[1756347066704,22.1739,4522.0,4521.9,0.288]
[1756347067002,0.6764,4521.5,4521.4,1.0627]
[1756347067204,22.1688,4521.5,4521.4,1.6315]
[1756347067502,22.1688,4521.5,4521.3,3.2078]
[1756347067503,0.704,4521.4,4521.3,3.2078]
[1756347067702,1.6458,4521.1,4521.0,1.6315]
[1756347068095,1.6458,4521.1,4521.0,1.2375]
[1756347068497,0.2732,4520.4,4520.3,3.2078]
[1756347068804,22.1688,4520.4,4520.3,4.8393]
[1756347069005,22.1688,4520.4,4520.3,4.4453]
[1756347069209,22.1688,4520.4,4520.3,3.2078]
[1756347069504,1.6458,4520.1,4520.0,0.7705]
[1756347069697,1.6458,4519.8,4519.7,1.0627]
[1756347069901,21.8651,4519.8,4519.7,1.0627]
[1756347070410,21.8651,4519.8,4519.7,1.6315]
[1756347070710,1.6458,4519.7,4519.6,3.2078]
[1756347071106,1.6458,4519.7,4519.6,4.4453]
[1756347071400,21.8631,4519.7,4519.6,4.8393]
[1756347071601,22.1718,4519.7,4519.6,3.2078]
[1756347073008,22.1718,4519.7,4519.2,0.394]
[1756347073206,21.5977,4519.7,4519.2,0.394]
[1756347073407,1.6458,4519.4,4519.3,0.9584]
[1756347073807,1.6458,4519.4,4519.3,1.2375]
[1756347074408,0.6764,4519.4,4519.0,3.7766]
[1756347074608,1.6458,4519.2,4519.1,1.2375]
[1756347074804,1.3371,4519.2,4519.1,1.6315]
[1756347075110,1.0717,4519.2,4519.1,1.6315]
[1756347075310,1.3371,4519.7,4519.6,0.6687]
[1756347075502,7.3691,4519.7,4519.6,1.6315]
[1756347076612,7.6778,4519.7,4519.6,1.6315]
[1756347076814,1.6458,4519.7,4519.6,1.6315]
[1756347077013,18.3121,4519.7,4519.6,1.6315]
[1756347078416,1.6458,4519.6,4519.5,0.39823]
[1756347078715,1.6458,4519.6,4519.5,1.63573]
[1756347079013,1.6458,4519.6,4519.5,1.2375]
[1756347080217,1.6458,4519.6,4519.5,1.6315]
[1756347082822,1.0717,4520.0,4519.9,1.6315]
[1756347083013,21.5557,4520.0,4519.9,1.6315]
[1756347084115,1.3371,4520.6,4520.5,0.87895]
[1756347084321,20.479,4520.6,4520.5,2.02965]
[1756347084620,22.1248,4520.6,4520.5,1.6315]
[1756347084822,21.5507,4520.6,4520.3,0.96696]
[1756347085016,1.6458,4520.5,4520.4,1.6315]
[1756347085325,20.479,4520.6,4520.5,0.39815]
[1756347085615,20.9515,4520.9,4520.8,1.6315]
[1756347085820,21.3468,4520.9,4520.8,1.6315]
[1756347086514,20.9515,4520.9,4520.8,2.02962]
[1756347087422,21.5517,4520.9,4520.8,2.02962]
[1756347087813,21.8171,4520.9,4520.8,2.02962]
[1756347089718,0.4715,4522.3,4522.2,0.4808]
[1756347089925,0.2732,4522.3,4522.2,5.2373]
[1756347090226,1.0717,4522.3,4522.2,5.2373]
[1756347090427,1.6458,4522.3,4522.2,5.2373]
[1756347090926,1.0717,4522.3,4522.2,5.2373]
[1756347091317,0.8668,4522.3,4522.2,5.2373]
[1756347091723,3.5348,4522.7,4522.6,2.01267]
[1756347091918,3.2694,4522.7,4522.6,2.01267]
[1756347092330,3.6958,4522.7,4522.6,2.01267]
[1756347092726,2.8662,4522.7,4522.6,2.01267]
[1756347093133,3.483,4522.7,4522.6,2.01267]
[1756347093333,2.589,4522.7,4522.6,2.01267]
[1756347094035,3.483,4522.7,4522.6,2.01267]
[1756347094329,3.0566,4522.7,4522.6,2.01267]
[1756347095327,3.483,4522.7,4522.6,2.01267]
[1756347096131,3.6776,4522.7,4522.6,2.01267]
[1756347096727,3.9437,4522.7,4522.6,2.01267]
[1756347097431,1.6439,4522.6,4522.5,0.39797]
[1756347097832,1.6439,4522.3,4522.2,3.2078]
[1756347098827,7.7859,4522.3,4522.2,4.1587]
[1756347099635,7.7859,4522.3,4522.2,3.5999]
[1756347099833,7.7859,4522.3,4522.2,3.2078]
[1756347100030,0.6622,4521.8,4521.7,3.2078]
[1756347100230,1.6439,4521.8,4521.7,3.2078]
[1756347100930,1.6439,4521.8,4521.7,3.4863]
[1756347101432,1.6439,4521.8,4521.7,3.2078]
[1756347101737,1.6439,4521.8,4521.7,3.4115]
[1756347102034,1.0886,4521.8,4521.7,4.8225]
[1756347103436,1.6439,4521.8,4521.7,3.2078]
[1756347103634,5.86505,4521.8,4521.2,3.2078]
[1756347103838,0.1605,4520.9,4520.8,0.2785]
[1756347104030,0.1605,4520.9,4520.5,3.2078]
[1756347104031,20.7175,4520.9,4520.5,3.2078]
[1756347104232,20.7175,4520.9,4520.8,0.2037]
[1756347104432,20.7175,4520.9,4520.8,1.6147]
[1756347105038,20.7175,4520.9,4520.8,1.2128]
[1756347105427,20.8178,4520.9,4520.5,3.2078]
[1756347105633,0.1605,4520.7,4520.6,0.4822]
[1756347105839,0.1605,4520.7,4520.6,1.6147]
[1756347107440,0.2608,4520.7,4520.6,0.2785]
[1756347107636,0.2608,4520.7,4520.5,3.2078]
[1756347107840,0.1605,4520.3,4520.2,0.2803]
[1756347108036,0.1605,4520.3,4520.2,0.7625]
[1756347108440,0.2608,4520.3,4520.2,0.2785]
[1756347108634,0.1003,4520.2,4519.8,0.2785]
[1756347108841,0.2608,4519.9,4519.8,0.2785]
[1756347109138,0.1605,4519.9,4519.8,1.6147]
[1756347109437,0.2608,4519.9,4519.8,0.2785]
[1756347109740,20.545,4520.1,4519.8,1.0559]
[1756347109941,20.7055,4520.1,4520.0,1.6147]
[1756347110142,20.7075,4520.1,4520.0,1.6147]
[1756347110937,0.1605,4520.1,4520.0,1.6147]
[1756347111144,20.7065,4520.1,4520.0,1.2128]
[1756347111742,20.8068,4520.1,4519.6,0.6822]
[1756347112046,0.1605,4519.7,4519.6,1.1644]
[1756347112242,0.1605,4519.7,4519.6,0.7625]
[1756347112445,0.1605,4519.7,4519.6,0.4822]
[1756347112744,0.1605,4519.7,4519.6,1.2128]
[1756347113047,0.1605,4519.7,4519.6,1.6147]
[1756347113443,0.1605,4519.7,4519.6,1.2128]
[1756347113644,0.1605,4519.7,4519.6,1.6147]
[1756347113840,10.1355,4519.7,4519.6,1.6147]
[1756347114039,3.3683,4520.3,4520.2,1.6147]
[1756347114241,22.8143,4520.3,4520.2,1.6147]
[1756347115546,22.8143,4520.3,4520.2,1.2128]
[1756347115747,22.9146,4520.3,4520.2,0.2785]
[1756347116048,0.2608,4520.0,4519.9,0.2785]
[1756347116243,0.1003,4519.9,4519.6,0.2785]
[1756347116548,0.1605,4519.7,4519.6,1.2128]
[1756347116748,0.1605,4519.7,4519.6,1.6147]
[1756347116941,20.6845,4519.7,4519.6,1.6147]
[1756347117551,3.2078,4520.3,4519.7,0.9607]
[1756347117746,20.6835,4520.2,4520.1,0.654]
[1756347117947,20.6835,4520.2,4520.1,1.2128]
[1756347118845,20.6835,4520.2,4520.1,1.6147]
[1756347119948,20.7838,4520.2,4519.6,0.7288]
[1756347120543,20.7838,4520.2,4519.7,0.2785]
[1756347120742,0.1605,4519.9,4519.8,1.6147]
[1756347121052,20.6735,4519.9,4519.8,1.6147]
[1756347121745,20.6735,4519.9,4519.5,3.2078]
[1756347122051,0.1596,4519.6,4519.5,4.4424]
[1756347122239,0.1596,4519.6,4519.5,4.8502]
[1756347124846,3.2078,4520.3,4519.5,3.2078]
[1756347125045,3.3674,4520.3,4520.2,1.6424]
[1756347125252,23.8614,4520.3,4519.7,0.2874]
[1756347125552,0.1596,4519.8,4519.7,1.0759]
[1756347125850,3.2078,4520.3,4520.0,0.39819]
[1756347126046,31.857,4520.8,4520.2,2.04058]
[1756347126253,35.2244,4520.8,4520.7,1.6424]
[1756347126451,55.7174,4520.8,4520.7,1.6424]
[1756347126851,55.5598,4520.8,4520.7,1.6424]
[1756347127046,35.0648,4520.8,4520.7,1.6424]
[1756347127352,55.5588,4520.8,4520.7,1.6424]
[1756347128251,55.7181,4520.8,4520.7,1.6424]
[1756347129155,52.5103,4520.8,4520.7,1.6424]
[1756347129547,52.351,4520.8,4520.7,1.6424]
[1756347131150,52.5103,4520.8,4520.7,1.6424]
[1756347131743,52.351,4520.8,4520.7,1.6424]
[1756347132144,52.328,4520.8,4520.7,4.8502]
[1756347132657,0.8347,4521.7,4521.6,0.4707]
[1756347132849,21.3057,4521.7,4521.6,1.6424]
[1756347133355,20.471,4521.7,4521.6,1.6424]
[1756347133858,20.471,4521.7,4521.6,5.6424]
[1756347135458,0.5274,4521.4,4521.3,0.2791]
[1756347135649,0.9342,4521.3,4520.7,0.2791]
[1756347136261,0.9342,4521.3,4520.7,0.4765]
[1756347137160,0.9342,4521.3,4520.7,0.2791]
[1756347137359,0.4279,4520.8,4520.7,0.2791]
[1756347137559,21.3287,4520.8,4520.7,1.6424]
[1756347138058,21.3287,4520.8,4520.7,1.2346]
[1756347138755,21.3217,4520.8,4520.7,1.6424]
[1756347139262,21.3217,4520.8,4520.7,0.5665]
[1756347139462,21.3187,4520.8,4520.7,1.6424]
[1756347139762,21.3187,4520.8,4520.7,1.2346]
[1756347141262,21.4182,4520.8,4520.3,0.2874]
[1756347141561,0.9342,4520.5,4520.4,0.2791]
[1756347141955,0.4279,4520.2,4520.1,3.4869]
[1756347142155,21.3117,4520.2,4520.1,3.4869]
[1756347142356,21.3117,4520.2,4520.1,3.7743]
[1756347142655,21.3117,4520.2,4520.1,3.9633]
[1756347142857,21.4112,4520.2,4519.7,0.2791]
[1756347143158,0.8347,4519.7,4519.6,4.8502]
[1756347144559,0.8347,4519.7,4519.6,4.4424]
[1756347146265,0.8347,4519.7,4519.6,4.8502]
[1756347147666,0.2686,4519.7,4519.6,4.8502]
[1756347148053,3.2078,4520.7,4519.9,1.6424]
[1756347148258,0.8347,4520.5,4520.4,1.6424]
[1756347150062,0.5063,4520.4,4520.1,0.2874]
[1756347150254,0.4068,4520.1,4519.8,0.2791]
[1756347150460,0.8347,4519.9,4519.8,0.2791]
[1756347150660,0.8347,4519.9,4519.8,0.9529]
[1756347150867,0.8347,4519.9,4519.8,1.6424]
[1756347151058,21.2897,4519.9,4519.8,1.6424]
[1756347152161,21.2897,4519.9,4519.8,0.2791]
[1756347152367,21.3894,4519.9,4519.8,0.2791]
[1756347152665,20.9826,4519.9,4519.6,3.2078]
[1756347152867,0.8441,4519.8,4519.7,0.2806]
[1756347153164,0.8441,4519.8,4519.7,0.7887]
[1756347153568,0.8441,4519.8,4519.7,1.6778]
[1756347154563,20.455,4519.9,4519.8,0.6957]
[1756347154765,20.455,4519.9,4519.8,1.6778]
[1756347155264,0.8441,4520.4,4520.3,1.6778]
[1756347155459,21.2941,4520.4,4520.3,1.6778]
[1756347155654,21.2941,4520.4,4520.3,0.9928]
[1756347155863,21.2941,4520.4,4520.0,0.2806]
[1756347156168,0.8441,4520.1,4520.0,0.2806]
[1756347156368,0.8441,4520.1,4520.0,0.6838]
[1756347156569,3.2078,4520.7,4520.0,1.6778]
[1756347156763,21.2941,4520.6,4520.5,0.1991]
[1756347157066,0.4206,4520.1,4520.0,0.6838]
[1756347157268,21.2901,4520.1,4520.0,0.9928]
[1756347159065,21.2901,4520.1,4520.0,1.2627]
[1756347159270,21.2901,4520.1,4520.0,1.6778]
[1756347159670,20.446,4520.1,4520.0,1.6778]
[1756347159870,3.2078,4520.7,4520.0,0.6731]
[1756347160070,20.437,4520.2,4520.1,1.6778]
[1756347160370,21.2811,4520.2,4520.1,1.6778]
[1756347162666,21.2811,4520.2,4520.1,1.2627]
[1756347162873,0.4206,4519.9,4519.8,0.7887]
[1756347163074,0.8441,4519.9,4519.8,1.2627]
[1756347163674,0.8441,4519.9,4519.8,1.6778]
[1756347163974,0.4206,4519.5,4519.4,0.9537]
[1756347164166,21.2691,4519.5,4519.4,1.3688]
[1756347164368,20.425,4519.5,4519.4,1.3688]
[1756347164573,20.425,4519.5,4519.4,1.6778]
[1756347165268,1.40022545,4520.5,4519.4,1.6778]
[1756347165269,3.2078,4520.2,4519.4,0.4151]
[1756347165469,0.8441,4519.6,4519.5,0.9928]
[1756347165869,0.8441,4519.6,4519.5,1.2627]
[1756347166572,0.9438,4519.6,4519.5,0.2806]
[1756347167470,0.6845,4518.9,4518.8,0.7887]
[1756347167675,21.2661,4518.9,4518.8,1.2627]
[1756347167977,21.2661,4518.9,4518.8,1.6778]
[1756347170374,21.3658,4518.9,4518.8,0.2806]
[1756347170575,0.4206,4518.5,4518.4,0.5896]
[1756347170774,0.9438,4518.5,4518.4,0.2806]
[1756347173176,0.4206,4518.2,4518.1,0.9537]
[1756347173374,21.2661,4518.2,4518.1,0.9537]
[1756347173878,21.2661,4518.2,4518.1,1.6778]
[1756347174482,21.2661,4518.2,4518.1,1.2627]
[1756347175482,21.2661,4518.2,4518.1,0.7887]
[1756347176269,21.2661,4518.2,4518.1,1.2627]
[1756347178390,21.3658,4518.2,4518.1,0.2806]
[1756347178588,0.4206,4517.9,4517.8,0.4032]
[1756347178789,0.8441,4517.9,4517.8,0.9821]
[1756347179191,0.8441,4517.9,4517.8,1.6778]
[1756347180285,0.261,4517.9,4517.8,1.6778]
[1756347180491,20.4,4518.0,4517.9,1.6778]
[1756347180791,3.2078,4518.5,4518.4,1.6778]
[1756347180792,4.0519,4518.5,4518.4,1.6778]
[1756347180989,24.4489,4518.5,4518.4,1.6778]
[1756347181584,24.4489,4518.5,4518.4,0.9928]
[1756347181789,0.8463,4517.7,4517.6,1.2454]
[1756347181986,0.8463,4517.7,4517.6,1.6697]
[1756347182587,20.398,4517.8,4517.6,0.6547]
[1756347182794,20.398,4517.8,4517.7,1.6697]
[1756347183487,21.0846,4517.8,4517.7,1.6697]
[1756347184092,0.4163,4518.4,4517.8,1.015]
[1756347184386,0.8463,4518.4,4518.3,1.6697]
[1756347184593,9.8433,4518.4,4518.3,1.6697]
[1756347185099,21.0796,4518.4,4518.3,1.6697]
[1756347185283,20.4,4518.6,4518.5,0.1863]
[1756347185587,21.2463,4518.6,4518.5,0.298]
[1756347185791,0.9461,4518.3,4518.2,0.298]
[1756347186488,20.4,4518.6,4518.0,3.5058]
[1756347186489,0.9461,4518.1,4518.0,3.5058]
[1756347186695,0.8463,4518.1,4518.0,4.1896]
[1756347187094,0.8463,4518.1,4518.0,0.9818]
[1756347187294,0.9461,4518.1,4518.0,0.5907]
[1756347187592,0.8463,4518.1,4518.0,0.9818]
[1756347187796,21.2453,4518.1,4518.0,1.6697]
[1756347190394,21.2453,4518.1,4518.0,1.2454]
[1756347190596,21.2453,4518.1,4518.0,0.9818]
[1756347190794,21.2453,4518.1,4518.0,1.2454]
[1756347190994,21.2453,4518.1,4518.0,1.6697]
[1756347191198,21.2453,4518.1,4518.0,1.2454]
[1756347192503,21.2453,4518.1,4518.0,0.9818]
[1756347194400,21.345,4518.1,4518.0,0.777]
[1756347194605,21.345,4518.1,4518.0,0.2927]
[1756347194801,0.9459,4517.8,4517.5,0.2927]
[1756347195107,0.9459,4517.7,4517.6,0.298]
[1756347195804,0.9459,4517.7,4517.2,0.2927]
[1756347196003,3.2078,4518.0,4517.1,0.4243]
[1756347196004,0.8462,4517.4,4517.3,0.5907]
[1756347196200,0.9459,4517.4,4517.3,0.298]
[1756347196601,0.4299,4517.1,4516.7,0.298]
[1756347196801,0.4299,4516.6,4516.5,3.8625]
[1756347197000,0.8462,4516.6,4516.5,4.2868]
[1756347197595,0.8462,4516.6,4516.5,4.8775]
[1756347197802,0.8462,4516.6,4516.5,4.4532]
[1756347198102,0.8462,4516.6,4516.5,4.8775]
[1756347200409,0.8462,4517.4,4517.3,0.6547]
[1756347200601,0.8462,4517.4,4517.3,1.6697]
[1756347200808,3.2078,4517.5,4517.3,1.6697]
[1756347201002,20.382,4517.4,4517.3,1.6697]
[1756347201602,21.2282,4517.4,4517.3,1.6697]
[1756347201906,21.2282,4517.4,4516.7,0.4243]
[1756347202110,0.8462,4516.9,4516.8,0.9818]
[1756347202405,21.3289,4516.9,4516.8,0.298]
[1756347202711,21.2292,4516.9,4516.8,1.6697]
[1756347203910,21.2292,4516.9,4516.8,1.2454]
[1756347204212,21.3289,4516.9,4516.8,0.298]
[1756347204403,21.2292,4516.9,4516.8,1.6697]
[1756347204604,20.383,4516.9,4516.8,0.6547]
[1756347205304,32.3099,4517.6,4517.5,0.6547]
[1756347205504,53.1132,4517.6,4517.5,1.6697]
[1756347205798,52.5373,4517.6,4517.5,1.6697]
[1756347206405,53.1132,4517.6,4517.5,1.6697]
[1756347207904,53.1132,4517.6,4517.5,0.9818]
[1756347208209,53.2129,4517.6,4517.5,0.298]
[1756347209510,0.4299,4517.3,4517.2,0.5907]
[1756347209709,21.2302,4517.3,4517.2,0.5907]
[1756347209911,21.2302,4517.3,4517.2,0.777]
[1756347210111,21.2302,4517.3,4517.2,0.9818]
[1756347210312,21.2302,4517.3,4517.2,0.5907]
[1756347210607,0.4299,4516.6,4516.5,1.2727]
[1756347210812,21.2302,4516.6,4516.5,0.6547]
[1756347211213,21.2302,4516.6,4516.5,1.2454]
[1756347211718,21.33,4516.6,4516.5,0.298]
[1756347212014,0.8486,4516.5,4516.4,4.4552]
[1756347212219,0.9484,4516.5,4516.4,3.4878]
[1756347213610,0.8486,4516.5,4516.4,3.7933]
[1756347214018,0.8486,4516.5,4516.4,3.9855]
[1756347214317,0.8486,4516.5,4516.4,4.8796]
[1756347214318,21.2326,4516.5,4516.4,4.8796]
[1756347214710,0.689,4516.5,4516.4,4.8796]
[1756347214917,21.073,4516.5,4516.4,4.8796]
[1756347215117,21.2326,4516.5,4516.4,4.8796]
[1756347215315,0.42,4517.0,4516.4,4.8796]
[1756347215615,0.8486,4517.0,4516.9,1.2474]
[1756347215815,21.3334,4517.0,4516.9,0.28]
[1756347217411,0.8486,4517.0,4516.9,1.2474]
[1756347217714,21.2336,4517.0,4516.9,1.6718]
[1756347217912,20.8136,4517.0,4516.9,1.6718]
[1756347218314,21.2336,4517.0,4516.9,1.6718]
[1756347218720,20.8136,4517.0,4516.9,1.6718]
[1756347218918,20.8136,4517.0,4516.6,0.3055]
[1756347219114,0.8486,4516.7,4516.6,0.4977]
[1756347219313,0.8486,4516.7,4516.6,0.6922]
[1756347219617,21.2336,4516.7,4516.6,1.6718]
[1756347220012,21.2336,4516.7,4516.6,0.28]
[1756347220210,21.2336,4516.7,4516.6,1.2474]
[1756347220413,21.2336,4516.7,4516.6,1.6718]
[1756347221031,20.654,4516.7,4516.6,1.6718]
[1756347221821,21.2336,4516.7,4516.6,1.6718]
[1756347222224,20.654,4516.7,4516.6,1.6718]
[1756347222424,20.805,4516.8,4516.7,0.9722]
[1756347222616,21.2336,4516.8,4516.7,0.9722]
[1756347223819,21.3334,4516.8,4516.4,3.2078]
[1756347224026,0.4286,4516.6,4516.5,0.28]
[1756347224324,0.8486,4516.6,4516.5,1.6718]
[1756347227818,21.2336,4516.6,4516.5,1.6718]
[1756347230228,21.2336,4516.6,4516.5,1.2474]
[1756347230827,21.2336,4516.6,4516.5,0.9722]
[1756347231129,21.3334,4516.6,4516.5,0.9722]
[1756347231426,21.2336,4516.6,4516.5,1.6718]
[1756347232131,21.2336,4516.6,4516.5,1.2474]
[1756347232734,21.2336,4516.6,4516.5,1.6718]
[1756347234323,20.8136,4516.6,4516.5,1.6718]
[1756347234526,0.8486,4516.9,4516.8,1.2474]
[1756347234822,21.3334,4516.9,4516.8,0.28]
[1756347235028,21.2336,4516.9,4516.8,1.6718]
[1756347235227,0.8486,4516.9,4516.8,1.6718]
[1756347235428,21.2336,4516.9,4516.8,1.6718]
[1756347236228,21.2336,4516.9,4516.6,0.28]
[1756347236438,0.9484,4516.7,4516.6,0.28]
[1756347236626,21.2336,4516.7,4516.6,1.6718]
[1756347236826,21.2336,4516.7,4516.6,1.2474]
[1756347237531,21.3334,4516.7,4516.6,0.28]
[1756347238432,0.5198,4516.6,4516.5,0.5855]
[1756347238622,0.8486,4516.6,4516.5,0.9722]
[1756347238825,0.8486,4516.6,4516.5,1.2474]
[1756347239026,0.8486,4516.6,4516.5,1.6718]
[1756347239831,0.8486,4516.6,4516.5,4.8796]
[1756347240533,0.8486,4517.2,4517.1,0.7777]
[1756347240740,21.2326,4517.2,4517.1,0.9722]
[1756347240931,20.384,4517.2,4517.1,1.6718]
[1756347241132,31.88,4517.6,4517.5,1.6718]
[1756347241133,32.7286,4517.6,4517.5,1.6718]
[1756347241431,53.1126,4517.6,4517.5,1.6718]
[1756347241831,0.4401,4517.3,4517.2,0.3054]
[1756347242033,0.8439,4517.3,4517.2,0.9895]
[1756347242228,0.8439,4517.3,4517.2,1.6606]
[1756347243235,0.9438,4517.3,4517.2,0.2981]
[1756347243440,0.8439,4517.3,4517.2,1.6606]
[1756347244137,0.9438,4517.3,4517.2,0.2981]
[1756347244332,0.4401,4517.3,4517.0,0.2981]
[1756347244538,0.8439,4516.5,4516.4,1.3625]
[1756347244739,21.2269,4516.5,4516.4,1.3625]
[1756347245038,21.2269,4516.5,4516.4,1.2499]
[1756347247142,21.3268,4516.5,4516.4,0.2981]
[1756347247341,0.8439,4516.5,4516.4,0.9445]
[1756347247535,21.2269,4516.5,4516.4,1.6606]
[1756347247840,21.2269,4516.5,4516.4,0.7931]
[1756347248539,21.2269,4516.5,4516.4,1.2499]
[1756347249242,21.2269,4516.5,4516.4,0.9895]
[1756347250042,20.383,4516.6,4516.5,0.3985]
[1756347250345,1.40237924,4517.8,4516.5,0.3985]
[1756347250346,0.8439,4517.4,4517.3,0.9518]
[1756347250544,3.2078,4517.8,4517.6,0.3984]
[1756347250844,0.8439,4517.7,4517.6,1.7609]
[1756347251043,0.8439,4517.7,4517.6,0.9518]
[1756347251344,0.9438,4517.2,4516.7,0.2981]
[1756347251644,0.0999,4516.5,4516.0,4.0077]
[1756347251844,0.8439,4516.1,4516.0,4.8684]
[1756347252833,0.2803,4516.6,4516.5,0.9518]
[1756347253041,21.2259,4516.6,4516.5,0.9518]
[1756347253435,21.2259,4516.6,4516.5,1.2499]
[1756347253645,21.2259,4516.6,4516.5,1.6606]
[1756347253842,0.4038,4517.1,4516.5,1.3625]
[1756347254050,0.8439,4517.1,4517.0,0.9895]
[1756347254345,0.4038,4516.9,4516.2,0.6035]
[1756347254537,0.8439,4516.9,4516.8,1.2499]
[1756347254739,21.2259,4516.9,4516.8,1.2499]
[1756347254942,20.382,4517.0,4516.4,0.39851]
[1756347255241,31.89,4517.7,4517.3,0.2981]
[1756347255446,52.7181,4517.7,4517.6,1.6606]
[1756347256040,53.1219,4517.7,4517.6,1.6606]
[1756347256950,53.1219,4517.7,4517.6,1.2499]
[1756347257548,53.1219,4517.7,4517.6,0.9895]
[1756347258246,0.4401,4517.4,4517.3,0.2981]
[1756347258452,0.4401,4517.4,4517.3,1.2499]
[1756347258453,0.8439,4517.4,4517.3,1.2499]
[1756347258643,0.8439,4517.4,4517.3,1.6606]
[1756347259045,21.2279,4517.4,4517.3,1.6606]
[1756347260949,21.2279,4517.4,4517.3,0.9895]
[1756347261642,20.8241,4517.4,4517.2,3.2078]
[1756347261843,0.4401,4516.8,4516.7,3.2078]
[1756347262050,21.3328,4516.8,4516.7,3.2078]
[1756347263055,21.2329,4516.8,4516.7,4.1973]
[1756347263251,21.2329,4516.8,4516.7,4.4577]
[1756347263750,0.4038,4517.2,4516.7,5.26688]
[1756347263950,21.2359,4517.1,4517.0,1.0571]
[1756347264252,21.2359,4517.1,4517.0,1.2499]
[1756347264643,21.2359,4517.1,4517.0,0.2981]
[1756347264953,21.2359,4517.1,4517.0,0.9895]
[1756347265147,21.2359,4517.1,4517.0,1.2499]
[1756347265353,21.2359,4517.1,4517.0,1.6606]
[1756347271555,21.2359,4517.1,4517.0,1.2499]
[1756347271858,21.3361,4517.1,4517.0,0.9895]
[1756347272057,21.3361,4517.1,4517.0,0.7931]
[1756347272257,21.2359,4517.1,4517.0,0.7931]
[1756347272457,21.2359,4517.1,4517.0,1.2581]
[1756347273059,21.2359,4517.1,4517.0,1.6756]
[1756347275160,21.2359,4517.1,4517.0,1.2581]
[1756347275361,20.8321,4517.1,4516.7,3.4944]
[1756347275564,2.36967924,4516.8,4516.7,3.2078]
[1756347275763,2.26947924,4516.8,4516.4,0.2866]
[1756347275961,0.9673,4516.5,4516.4,0.2866]
[1756347276161,21.3483,4516.5,4516.2,3.2078]
[1756347276460,0.4376,4516.3,4516.2,3.2078]
[1756347276763,0.8671,4516.3,4516.2,3.6991]
[1756347276959,0.8671,4516.3,4516.2,3.2078]
[1756347277263,0.8671,4516.3,4516.2,4.8682]
[1756347278462,20.8186,4516.7,4516.6,0.3991]
[1756347278762,21.2481,4516.7,4516.6,1.6604]
[1756347279355,21.2481,4516.7,4516.6,1.2429]
[1756347280053,21.2481,4516.7,4516.6,0.5759]
[1756347280254,21.3483,4516.7,4516.6,0.2866]
[1756347280459,0.1002,4516.4,4516.3,0.2866]
[1756347280660,0.9673,4516.4,4516.3,0.2866]
[1756347280858,0.7068,4516.4,4516.3,1.6604]
[1756347281060,0.4295,4516.4,4516.3,1.6604]
[1756347281260,0.8671,4516.4,4516.3,1.6604]
[1756347281960,0.8671,4516.4,4516.3,1.2429]
[1756347282166,0.9673,4516.4,4516.3,0.28974203]
[1756347282369,0.9673,4516.4,4516.3,0.00314203]
[1756347284066,0.9669,4515.7,4515.6,3.4944]
[1756347284263,21.3479,4515.7,4515.6,3.2078]
[1756347284668,21.3479,4515.7,4515.6,3.4944]
[1756347285266,21.3479,4515.7,4515.6,3.2078]
[1756347285872,21.2477,4515.7,4515.1,3.2078]
[1756347286063,0.9669,4515.2,4515.1,0.2866]
[1756347286266,21.3479,4515.2,4515.1,0.2866]
[1756347286661,21.3479,4515.2,4515.1,0.5759]
[1756347287064,21.2477,4515.2,4515.1,1.6604]
[1756347287460,20.8186,4515.2,4515.1,1.6604]
[1756347287664,20.6583,4515.2,4515.1,1.6604]
[1756347287973,21.2477,4515.2,4515.1,1.6604]
[1756347288174,21.2477,4515.2,4515.1,0.975]
[1756347288470,0.9669,4515.1,4515.0,3.2078]
[1756347288768,0.8667,4514.6,4514.5,1.2429]
[1756347288962,21.2487,4514.6,4514.5,1.2429]
[1756347289465,0.1002,4515.4,4514.5,1.6604]
[1756347289661,0.8667,4515.2,4515.1,0.202]
[1756347289865,0.9669,4515.2,4515.1,0.2866]
[1756347290573,21.2497,4515.2,4515.1,1.6604]
[1756347290973,21.23919165,4515.2,4515.1,1.6604]
[1756347291473,21.23919165,4515.2,4515.1,1.2429]
[1756347292982,21.23919165,4515.2,4515.1,0.975]
[1756347293179,21.33939165,4515.2,4514.7,0.2866]
[1756347293369,0.5188,4514.9,4514.8,0.2866]
[1756347293671,0.9564,4514.9,4514.8,0.2866]
[1756347294074,0.1603,4514.5,4514.4,3.4944]
[1756347294276,21.3404,4514.5,4514.4,3.4944]
[1756347294578,21.3404,4514.5,4514.4,3.2078]
[1756347295074,21.2402,4514.5,4514.4,4.8682]
[1756347295269,21.3404,4514.5,4514.4,3.7837]
[1756347296174,21.3404,4514.5,4514.4,3.2078]
[1756347296373,0.4376,4514.2,4514.1,0.3885018]
[1756347296677,0.9564,4514.2,4514.1,0.1019018]
[1756347297973,0.8562,4514.2,4514.1,1.3448018]